Cogmind - Beta 9.6 @@@ ROGUE MODE // 2020.04.29 @ 00:57:10 // AFD2020/Player2 Player: Nalzok Result: Core destroyed Performance ------------- Evolutions (0) 0 Regions Visited (4) 800 Robots Destroyed (13) 65 Value Destroyed (132) 132 Prototype IDs (22) 440 Alien Tech Used (0) 0 Bonus (529) 529 TOTAL SCORE: 1966 Bonus ------- Follower Combat Kills 250 Aligned with FarCom 300 Friendly Fire -21 Cogmind --------- Core Integrity 0/250 Matter 268/300 Energy 250/250 System Corruption 0% Temperature Cool (0) Movement Walking (120) Location -9/Mines Parts ------- > --- POWER (1) -------- Ion Engine > --- PROPULSION (2) --- Improved Aluminum Leg Carbon-fiber Leg > --- UTILITY (2) ------ Improved Heat Sink Large Storage Unit > --- WEAPON (2) ------- Assault Rifle Light Assault Rifle > --- INVENTORY (10) --- Reinforced Deuterium Engine Humpback Humpback Superbattery (2000) Sensor Array Signal Interpreter Light Assault Rifle Grenade Launcher Peak State ------------ > --- POWER ------------ Ion Engine > --- PROPULSION ------- Improved Aluminum Leg Carbon-fiber Leg > --- UTILITY ---------- Improved Heat Sink Large Storage Unit > --- WEAPON ----------- Assault Rifle Light Assault Rifle > --- INVENTORY -------- Reinforced Deuterium Engine Humpback Humpback Superbattery Sensor Array Signal Interpreter Light Assault Rifle Grenade Launcher [Rating: 14] Favorites ----------- Power Ion Engine Engine Ion Engine Propulsion Aluminum Leg Leg Aluminum Leg Utility Small Storage Unit Device Improved Heat Sink Storage Small Storage Unit Weapon Assault Rifle Energy Gun Medium Laser Ballistic Gun Assault Rifle Launcher Grenade Launcher Build | -11 -10 -10 -10 -9 ------- Run | Scr Mat Min Exi Min Slots Evolved . | . . . . . Power . | . . . . . Propulsion . | . . . . . Utility . | . . . . . Weapon . | . . . . . Parts Attached 15 | . 6 4 1 4 Power . | . . . . . Engine . | . . . . . Core . | . . . . . Reactor . | . . . . . Propulsion 5 | . 1 2 . 2 Treads . | . . . . . Leg 5 | . 1 2 . 2 Wheel . | . . . . . Hover . | . . . . . Flight . | . . . . . Utility 3 | . 1 1 1 . Device 2 | . 1 1 . . Storage 1 | . . . 1 . Processor . | . . . . . Hackware . | . . . . . Protection . | . . . . . Artifact . | . . . . . Weapon 7 | . 4 1 . 2 Energy Gun 2 | . 2 . . . Energy Cannon . | . . . . . Ballistic Gun 3 | . . 1 . 2 Ballistic Cannon . | . . . . . Launcher 2 | . 2 . . . Special Weapon . | . . . . . Impact Weapon . | . . . . . Slashing Weapon . | . . . . . Piercing Weapon . | . . . . . Special Melee Weapon . | . . . . . Unidentified Prototypes . | . . . . . Parts Lost . | . . . . . Power . | . . . . . Propulsion . | . . . . . Utility . | . . . . . Weapon . | . . . . . Highest Loss Streak . | . . . . . Average Slot Usage (%) 98 | . 91 100 100 100 Engine 14 | . 14 14 14 14 Leg 28 | . 28 28 28 28 Device 12 | . 5 14 14 14 Storage 14 | . 14 14 14 14 Energy Gun 3 | . 13 . . . Ballistic Gun 24 | . 14 27 28 28 Naked Turns . | . . . . . Heaviest Build 25 | 13 15 14 25 25 Greatest Support 28 | 20 20 20 20 28 Greatest Overweight (x) 1 | . . . 1 1 Average Overweight (x) . | . . . . . Largest Inventory Capacity 10 | 6 6 6 10 10 Average Capacity 6 | 6 6 6 6 10 Most Carried 10 | 5 6 6 10 10 Average Carried 6 | 4 3 6 6 10 Final Capacity 10 | 6 6 6 10 10 Final Carried 10 | 2 6 6 10 10 Class Distribution -------------------- 97% | Mutant Dominant Class ---------------- Mutant | -10/Materials Mutant | -10/Mines Mutant | -10/Exiles Mutant | -9/Mines Resources | -11 -10 -10 -10 -9 ----------- Run | Scr Mat Min Exi Min Matter Collected 490 | 200 132 80 10 68 Remotely . | . . . . . Salvage Created 195 | . 51 77 . 67 Parts 25 | . 12 6 . 7 Haulers Intercepted . | . . . . . Recyclers Shooed . | . . . . . Parts Field Recycled . | . . . . . Retrieved Matter . | . . . . . Parts Self-Destructed . | . . . . . Prevented . | . . . . . Kills | -11 -10 -10 -10 -9 ------- Run | Scr Mat Min Exi Min Combat Hostiles Destroyed 11 | . 4 3 . 4 Guns 8 | . 1 3 . 4 AOE 3 | . 3 . . . Classes Destroyed 5 | . 3 1 . 1 Worker 1 | . 1 . . . Tunneler 1 | . 1 . . . Swarmer 8 | . 4 2 . 2 Grunt 1 | . . 1 . . Assembled 2 | . . . . 2 Best Kill Streak 3 | . 3 2 . 2 Combat Bots Only 2 | . 2 2 . 2 Max Kills in Single Turn 3 | . 3 2 . 1 Gunslinging 1 | . . 1 . . Exploded 2 | . 2 . . . Melee . | . . . . . Uniques/NPCs Destroyed . | . . . . . Combat | -11 -10 -10 -10 -9 -------- Run | Scr Mat Min Exi Min Damage Taken 225 | . 168 50 . 7 Core 62 | . 54 8 . . Absorbed by Shields . | . . . . . Core Remaining (%) 100 | 100 . . . . Volleys Fired 39 | . 14 10 . 15 Largest 2 | . 2 2 . 2 Hottest 70 | . 70 40 . 40 Shots Fired 78 | . 28 20 . 30 Gun 75 | . 25 20 . 30 Cannon . | . . . . . Launcher 3 | . 3 . . . Special . | . . . . . Kinetic 64 | . 14 20 . 30 Thermal 11 | . 11 . . . Explosive 3 | . 3 . . . Electromagnetic . | . . . . . Robot Hit Streak 6 | . 4 6 . 2 Robot Miss Streak 6 | . 4 1 . 6 Penetration Max . | . . . . . Secondary Targets 4 | . . 1 . 3 Max Gunslinging Chain 1 | . . 1 . 1 Shots Hit Robots 36 | . 14 14 . 8 Core Hits 29 | . 13 7 . 9 Critical Hits . | . . . . . Critical Kills . | . . . . . Critical Parts Destroyed . | . . . . . Melee Attacks . | . . . . . Impact . | . . . . . Slashing . | . . . . . Piercing . | . . . . . Sneak Attacks . | . . . . . Combat Hostiles . | . . . . . Follow-up Attacks . | . . . . . Damage Inflicted 656 | . 365 131 . 160 Guns 465 | . 174 131 . 160 Cannons . | . . . . . Explosions 185 | . 185 . . . Melee . | . . . . . Ramming 6 | . 6 . . . Kinetic 377 | . 86 131 . 160 Thermal 88 | . 88 . . . Explosive 185 | . 185 . . . Electromagnetic . | . . . . . Impact . | . . . . . Slashing . | . . . . . Piercing . | . . . . . Highest Corruption . | . . . . . Average Corruption . | . . . . . Corruption Purged . | . . . . . Overload Shots . | . . . . . Overflow Damage . | . . . . . Projectiles . | . . . . . Explosions . | . . . . . Melee . | . . . . . Knockbacks . | . . . . . Impact . | . . . . . Kinetic . | . . . . . Secondary . | . . . . . Self-Inflicted Damage 3 | . 3 . . . Shots . | . . . . . Rammed 1 | . 1 . . . Targets Rammed 1 | . 1 . . . Kicked . | . . . . . Crushed . | . . . . . Highest Temperature 147 | . 147 . . . Average Temperature 66 | . 66 . . . Received Heat Transfer 102 | . 84 18 . . Siege Activations . | . . . . . Robots Corrupted . | . . . . . Combat Hostiles . | . . . . . Parts Fried . | . . . . . Impact Corruptions . | . . . . . Robots Melted . | . . . . . Combat Hostiles . | . . . . . Parts Melted . | . . . . . Heat Transferred 259 | . 259 . . . Parts Sabotaged . | . . . . . Parts Stolen . | . . . . . Parts Stripped . | . . . . . Power Chain Reactions . | . . . . . Missiles Intercepted . | . . . . . Alert | -11 -10 -10 -10 -9 ------- Run | Scr Mat Min Exi Min Peak Influence 334 | . 334 220 . 180 Average Influence 78 | . 134 54 . 74 Maximum Alert Level 1 | . 1 1 . . Low Security (%) 88 | 100 60 97 . 100 Level 1 11 | . 40 2 . . Level 2 . | . . . . . Level 3 . | . . . . . Level 4 . | . . . . . Level 5 . | . . . . . High Security . | . . . . . Max Security . | . . . . . Squads Dispatched . | . . . . . Investigation . | . . . . . Extermination . | . . . . . Reinforcement . | . . . . . Assault . | . . . . . Garrison . | . . . . . Intercept . | . . . . . Construction Impeded . | . . . . . Haulers Reinforced . | . . . . . Stealth | -11 -10 -10 -10 -9 --------- Run | Scr Mat Min Exi Min Distress Signals . | . . . . . Communications Jammed . | . . . . . Distress Signals . | . . . . . Times Spotted 33 | . 11 7 . 15 Peak Tracking Total 12 | . 4 3 . 12 Tactical Retreats . | . . . . . Traps | -11 -10 -10 -10 -9 ------- Run | Scr Mat Min Exi Min Traps Triggered . | . . . . . Indirectly . | . . . . . Trap Hack Attempts . | . . . . . Triggered . | . . . . . Disarmed . | . . . . . Reprogrammed . | . . . . . Reused . | . . . . . Traps Extracted . | . . . . . Installed . | . . . . . Triggered . | . . . . . Machines | -11 -10 -10 -10 -9 ---------- Run | Scr Mat Min Exi Min Machines Disabled 1 | . 1 . . . Max in Single Turn . | . . . . . Machines Sabotaged . | . . . . . Garrisons Compromised . | . . . . . Overloaded Fab Kills . | . . . . . Fab Network Shutdowns . | . . . . . Hacking | -11 -10 -10 -10 -9 --------- Run | Scr Mat Min Exi Min Machines Accessed 6 | . 3 1 2 . Terminals 4 | . 3 1 . . Fabricators . | . . . . . Repair Stations . | . . . . . Recycling Units . | . . . . . Scanalyzers . | . . . . . Garrison Access . | . . . . . Total Hacks 15 | . 12 1 2 . Successful 6 | . 3 1 2 . Failed 9 | . 9 . . . Catastrophic 2 | . 2 . . . Database Lockouts . | . . . . . Manual 14 | . 12 1 1 . Terminals 13 | . 12 1 . . Fabricators . | . . . . . Repair Stations . | . . . . . Recycling Units . | . . . . . Scanalyzers . | . . . . . Garrison Access . | . . . . . Terminal Hacks 4 | . 1 1 2 . Record 1 | . . . 1 . Unreport Threat 2 | . 1 1 . . EX-Prototype ID Bank 1 | . . . 1 . Fabricator Hacks . | . . . . . Repair Station Hacks . | . . . . . Recycling Unit Hacks . | . . . . . Scanalyzer . | . . . . . Garrison Access Hacks . | . . . . . Unauthorized Hacks 2 | . 2 . . . Terminals 2 | . 2 . . . Botnet 1 | . 1 . . . Operators 1 | . 1 . . . Fabricators . | . . . . . Repair Stations . | . . . . . Recycling Units . | . . . . . Scanalyzers . | . . . . . Garrison Access . | . . . . . Data Cores Recovered . | . . . . . Used . | . . . . . Hacking Detections 3 | . 3 . . . Full Trace Events . | . . . . . Feedback Events . | . . . . . Feedback Blocked . | . . . . . Robot Schematics Acquired . | . . . . . Robots Built . | . . . . . Matter . | . . . . . Time . | . . . . . Total Robot Build Rating . | . . . . . Part Schematics Acquired . | . . . . . Parts Built . | . . . . . Matter . | . . . . . Time . | . . . . . Total Part Build Rating . | . . . . . Parts Repaired . | . . . . . Time . | . . . . . Parts Recycled . | . . . . . Recycled Matter . | . . . . . Retrieved Matter . | . . . . . Retrieved Components . | . . . . . Parts Scanalyzed . | . . . . . Part Schematics Acquired . | . . . . . Parts Damaged . | . . . . . Bothacking | -11 -10 -10 -10 -9 ------------ Run | Scr Mat Min Exi Min Used RIF Installer . | . . . . . Robots Hacked . | . . . . . Non-combat . | . . . . . Combat . | . . . . . Robot Hacks Applied . | . . . . . Relay Couplers Released . | . . . . . Robots Rewired . | . . . . . Allies Hacked . | . . . . . Hacks Repelled . | . . . . . Allies | -11 -10 -10 -10 -9 -------- Run | Scr Mat Min Exi Min Total Allies 2 | . 1 1 . . Largest Group 2 | . 1 2 2 1 Highest-Rated Group 89 | . 57 89 89 63 Highest-Rated Ally 63 | . 57 58 58 63 Total Orders . | . . . . . Ally Attacks 52 | . 20 13 . 19 Total Damage 605 | . 268 146 . 191 Kills 19 | . 9 4 . 6 Allies Corrupted . | . . . . . Allies Melted . | . . . . . Intel | -11 -10 -10 -10 -9 ------- Run | Scr Mat Min Exi Min Robot Analysis Total . | . . . . . Derelict Logs Recovered 3 | . . 1 . 2 Drone Launches . | . . . . . Drone Recoveries . | . . . . . Exploration | -11 -10 -10 -10 -9 ------------- Run | Scr Mat Min Exi Min Turns Passed 1665 | 2 340 776 361 186 Spaces Moved 1218 | 1 232 604 284 97 Core . | . . . . . Treads . | . . . . . Legs 1218 | 1 232 604 284 97 Wheels . | . . . . . Hover . | . . . . . Flight . | . . . . . Fastest Speed 120 | 120 120 120 120 120 Average Speed 123 | 120 120 120 124 143 Slowest Speed 150 | 120 120 120 150 150 Overloaded Moves . | . . . . . Propulsion Burnouts . | . . . . . Robots Hopped . | . . . . . Cave-ins Triggered . | . . . . . Exploration Rate (%) 49 | 2 52 95 63 37 Regions Visited 4 Branch Regions 3 Pre-discovered Areas 3 | . . . 1 2 Known Exits Taken . | . . . . . Unknown Exits Taken 4 | 1 1 1 1 . Scrap Searched 1 | . . 1 . . Spaces Dug . | . . . . . Terrain Destroyed 20 | . 20 . . . Melee . | . . . . . Projectile . | . . . . . AOE 20 | . 20 . . . Actions | -11 -10 -10 -10 -9 --------- Run | Scr Mat Min Exi Min Total 1321 | 4 264 640 293 120 Wait 20 | . 3 17 . . Move 1214 | . 231 603 283 97 Hop . | . . . . . Pick Up 12 | . 6 1 5 . Fast Attach 2 | . 1 1 . . Attach . | . . . . . Detach . | . . . . . Swap 13 | . 5 3 1 4 Drop 20 | 4 3 5 4 4 Fire 39 | . 14 10 . 15 Melee . | . . . . . Ram . | . . . . . Kick 1 | . 1 . . . Crush . | . . . . . Escape Stasis . | . . . . . Rewire . | . . . . . Trap . | . . . . . Miscellaneous . | . . . . . Route ------- -11/Scrapyard -10/Materials -10/Mines (discovered 3 exits: [*Mat x2] / *Exi) -10/Exiles (discovered 2 exits: [*Min x2]) -9/Mines History --------- Turn | Location | Event 3 | -11/Scrapyard | Discovered new exit (range 0) 3 | -11/Scrapyard | Entered Materials 144 | -10/Materials | Discovered new exit (range 7) 307 | -10/Materials | Build established: Mutant 343 | -10/Materials | Entered Mines 343 | -10/Mines | Accompanied by 1 ally 545 | -10/Mines | Discovered new exit (range 12) 581 | -10/Mines | Learned 4 Materials zone layouts 629 | -10/Mines | Discovered new exit (range 8) 1054 | -10/Mines | Received a Mining Laser from a helpful Derelict 1112 | -10/Mines | Deemed a non-threat by the Exiles lab entrance 1112 | -10/Mines | Discovered new exit (range 5) 1119 | -10/Mines | Entered Exiles 1119 | -10/Exiles | Accompanied by 2 allies 1141 | -10/Exiles | Discovered new exit (range 15) 1156 | -10/Exiles | Met 8R-AWN 1176 | -10/Exiles | Met EX-HEX 1208 | -10/Exiles | Met EX-BIN 1241 | -10/Exiles | Aligned with FarCom system 1242 | -10/Exiles | Given EX-Vault access code 1272 | -10/Exiles | Opened EX-Vault 1285 | -10/Exiles | Found Superbattery 1318 | -10/Exiles | Warned to stay clear of 0b10 Research branches 1352 | -10/Exiles | Met EX-DEC 1370 | -10/Exiles | Learned location of Zion (-7) 1468 | -10/Exiles | Discovered new exit (range 10) 1480 | -10/Exiles | Left Exiles lab with Superbattery 1480 | -10/Exiles | Entered Mines 1480 | -9/Mines | Accompanied by 1 ally 1484 | -9/Mines | Met a Derelict bent on vengeance 1602 | -9/Mines | Core integrity fell below 50% 1631 | -9/Mines | Assembled infested the area 1636 | -9/Mines | Assisted by a Guerilla fighting off Assembled 1663 | -9/Mines | Core integrity fell below 20% 1666 | -9/Mines | Core destroyed Last Messages --------------- 01643_ K-01 Serf collects debris. 01645_ R-06 Scavenger collects Lgt. Ion Engine. 01645_ K-01 Serf collects debris. 01646_ as-91436 sneak attacks. 01647_ K-01 Serf collects debris. 01648_ Destroyed Wheel. 01649_ K-01 Serf destroyed. 01650_ K-01 Serf collects debris. 01651_ as-18204 sneak attacks. 01654_ K-01 Serf collects debris. 01655_ Player 2 attaches Lgt. Assault Rifle. 01657_ as-91436 destroyed. 01657_ Switching to secondary target: as-18204. 01657_ K-01 Serf collects debris. 01660_ Player 2 attaches Sml. Laser. 01661_ Player 2 attaches Com. Wheel. 01664_ K-01 Serf collects debris. 01665_ as-08673 destroyed. 01665_ Switching to secondary target: as-89215. 01666_ Player 2 attaches Ion Engine. Map ----- +----------------------------------------------------+ | ??????????????????????????????????????????? | | ??????????????????????????????????????????? | | ??????????????????????????????????????????? | | ??????????????????????????????????????????? | | ??????????????????????????????????????????? | | ??????????????????????????????????????????? | | ??????????????????????????????????????????? | | ??????????????????????????????????????????? | | ?????????????????????????????#????????????? | | ???????????????????????????? #????????????? | | ???????????????????????????# #????????????? | | ?????????????????????????## ### #????????? | | ?????????????????????#### #????????? | | ????????????????????##a ???????????? | | ????????????????????#%a #?????????????? | | ????????????????????#=a= #???????????????? | | ????????????????????#@a #????????????????? | | ???????????????????##aa%##????????????????? | | ??????###????????###=[ =##????????????????? | | ?????## ###????## = #????????????????? | | ?????# #??## a#????????????????? | | ?????# ### %#????????????????? | | ??????# %=[ ##???????????????? | | ???????# == =%! %##??????????????? | | ????????# ! ! k ##?????????????? | | ????????##### !% @ #?????????????? | | #####???????## ** ????????? | | ##??????## %=%#### ???? | | #####?## ##??## #### #??? | | ### ##????# ##???? #####??? | | ##?????# #?????? ##??????? | | # #?????? #???????#???????? | | ## #????? ???????????????? | | ?## ##????? ??????????????? | | ??### ### ##????? #?????????????? | | ????# #?#####??????# ##?????????????? | | ????# #????????????# #??????????????? | | ##### #????????????# ???????????????? | | #????????????# ???????????????? | | ## #?????????????# ???????????????? | | ?# ?????????? ???????????????? | | ?## ???????????????????????????? | | ??## ##########??????????????????????????? | | ???####???????????????????????????????????? | | ??????????????????????????????????????????? | | ??????????????????????????????????????????? | | ??????????????????????????????????????????? | | ??????????????????????????????????????????? | | ??????????????????????????????????????????? | | ??????????????????????????????????????????? | +----------------------------------------------------+ Best States ------------- Heat Dissipation 39 Energy Generation 10 Energy Capacity 250 Matter Stores 300 Matter Capacity 300 Sight Range 16 Terrain Scan Density 10 Evasion (%) 40 Item Schematics ----------------- None Robot Schematics ------------------ None Fabricated ------------ Nothing Alien Tech Used ----------------- None Achievements -------------- None Challenges ------------ None Player 2 | -11 -10 -10 -10 -9 ---------- Run | Scr Mat Min Exi Min Slots Evolved . | . . . . . Power . | . . . . . Propulsion . | . . . . . Utility . | . . . . . Weapon . | . . . . . Parts Attached 26 | . 11 5 2 8 Parts Lost 5 | . . 1 . 4 Damage Taken 713 | . 84 178 . 451 Core 204 | . 36 25 . 143 Player 2/Cogmind (%) 76 | . 40 75 . 100 Absorbed by Shields . | . . . . . Damage Inflicted 605 | . 268 146 . 191 Player 2/Cogmind (%) 47 | . 42 52 . 54 Combat Hostiles Destroyed 13 | . 4 4 . 5 Player 2/Cogmind (%) 54 | . 50 57 . 55 Game ------ Seed SignalFlightLeg Manual? 0 Play Time 00:16:24 Cumulative 251.4 hours Start 2020.04.27 @ 18:11:10 End 2020.04.29 @ 00:57:10 Sessions 4 Manual Loads 0 Difficulty Rogue Special Mode AFD2020/Player2 Game No. 389 Rogue 388 Adventurer 0 Explorer 1 Win Type - Total 1 Types 1/0/0/0/0/0/0 Lore% 65 Gallery% 79 Achievement% 54 Wizard Run 0 Options --------- ASCII 1 Keyboard 1 Movement Vi Keybinds 0 Fullscreen 2 Font 14/Cog Map View 72x52 Tactical HUD 1 Map Filters NONE Filters LOW_CONTRAST(13,24,33) Steam 0 RUN: 54d5a786-743d-4ef8-b12f-12c64954e5dd